bitfinex/quotes_ETHUSD_20251107
["timestamp","ask_amount","ask_price","bid_price","bid_amount"]
[1762527027595,0.0012,3274.1,3273.4,0.405504]
[1762527027905,0.0012,3274.1,3272.0,0.1855]
[1762527027906,0.4883,3274.1,3272.0,0.1855]
[1762527028104,0.4883,3274.1,3270.8,6.05126141]
[1762527028105,1.259712,3273.8,3270.8,0.4766]
[1762527028272,1.259712,3273.0,3270.8,0.4766]
[1762527028474,0.6864,3272.9,3270.8,0.4766]
[1762527028677,3.05636846,3271.9,3270.1,0.4766]
[1762527028903,1.259712,3271.9,3269.6,0.1855]
[1762527029065,6.25056141,3272.9,3270.2,0.4766]
[1762527029066,0.4871,3272.2,3270.2,0.4766]
[1762527029373,3.54187695,3273.6,3270.3,5.12905229]
[1762527029566,0.4871,3273.6,3270.9,0.405504]
[1762527029762,0.0012,3274.1,3271.5,3.05661754]
[1762527029962,0.0012,3274.1,3271.3,1.259712]
[1762527030162,0.0012,3274.1,3270.9,6.10126141]
[1762527030163,0.0012,3274.1,3271.6,0.405504]
[1762527030402,0.51776465,3274.0,3271.5,0.405504]
[1762527030698,0.51776465,3274.0,3271.7,0.405504]
[1762527030699,3.05462162,3273.8,3271.7,0.405504]
[1762527030905,0.0012,3274.1,3271.7,0.405504]
[1762527031073,0.0012,3274.1,3271.9,0.405504]
[1762527031276,0.0012,3274.1,3271.8,11.567203]
[1762527031277,0.0012,3274.1,3272.1,0.405504]
[1762527031604,0.4871,3274.0,3271.4,0.4766]
[1762527031804,0.4871,3274.0,3271.5,0.4766]
[1762527031977,0.4871,3274.0,3271.6,2.983925]
[1762527032175,0.0012,3274.1,3271.8,0.405504]
[1762527032500,0.0012,3274.1,3272.0,0.405504]
[1762527032701,0.0012,3274.1,3272.2,0.405504]
[1762527033061,0.0012,3274.1,3272.8,0.405504]
[1762527033062,0.002,3274.0,3272.8,0.405504]
[1762527033304,0.002,3274.0,3273.0,0.405504]
[1762527033477,0.002,3274.0,3272.9,0.405504]
[1762527033807,0.002,3274.0,3272.8,0.4766]
[1762527033808,0.002,3274.0,3273.1,0.405504]
[1762527034101,0.002,3274.0,3272.9,0.405504]
[1762527034462,0.002,3274.0,3273.0,0.405504]
[1762527034990,0.4985,3274.0,3272.2,0.4666]
[1762527035299,0.03066465,3273.9,3272.1,0.1736]
[1762527035517,0.4985,3274.0,3272.2,0.4666]
[1762527035732,0.002,3274.0,3272.3,3.581691]
[1762527035862,0.002,3274.0,3273.9,0.1855]
[1762527036208,3.05051603,3278.2,3273.9,0.1855]
[1762527036209,0.47906684,3275.4,3274.1,3.05424565]
[1762527036413,0.5015,3276.9,3274.4,0.405504]
[1762527036710,0.5015,3276.9,3274.6,0.405504]
[1762527036711,0.005,3276.9,3274.6,0.405504]
[1762527036895,0.005,3276.9,3274.7,3.296377]
[1762527037062,0.005,3276.9,3274.5,1.07628157]
[1762527037063,0.005,3276.9,3275.0,6.05126141]
[1762527037263,0.005,3276.9,3275.2,0.405504]
[1762527037466,0.005,3276.9,3275.4,0.405504]
[1762527037786,0.005,3276.9,3275.6,0.405504]
[1762527038108,0.005,3276.9,3275.8,0.405504]
[1762527038903,0.005,3276.9,3276.0,0.405504]
[1762527039075,0.005,3276.9,3275.9,0.89278157]
[1762527039277,0.005,3276.9,3276.0,0.591004]
[1762527039678,0.005,3276.9,3276.2,0.405504]
[1762527040064,0.005,3276.9,3275.3,0.4983]
[1762527040264,0.005,3276.9,3275.6,0.405504]
[1762527040512,0.005,3276.9,3276.8,0.591004]
[1762527040818,0.002,3277.1,3276.9,0.405504]
[1762527041161,0.002,3277.1,3276.5,0.405504]
[1762527041889,0.002,3277.1,3276.7,1.665216]
[1762527042090,0.002,3277.1,3276.9,0.405504]
[1762527042294,0.002,3277.1,3276.8,3.227944]
[1762527042295,0.005,3277.9,3277.1,2.493504]
[1762527042494,0.005,3277.9,3276.5,0.35903027]
[1762527042495,0.005,3277.9,3276.9,0.92448157]
[1762527042679,0.005,3277.9,3277.3,0.405504]
[1762527042881,0.005,3279.9,3278.0,0.405504]
[1762527043192,0.005,3279.9,3277.3,0.405504]
[1762527043367,3.04942428,3279.4,3276.4,0.1805]
[1762527043571,3.51502434,3279.2,3276.9,0.405504]
[1762527043765,3.51509561,3279.2,3276.6,0.405504]
[1762527043989,0.4655,3279.2,3276.8,0.405504]
[1762527044183,0.4655,3278.8,3276.8,0.405504]
[1762527044410,0.4655,3279.3,3276.9,4.096753]
[1762527044713,0.4655,3278.8,3276.9,0.4983]
[1762527045005,3.05007226,3278.7,3277.0,0.405504]
[1762527045211,3.05024771,3278.5,3277.0,0.405504]
[1762527045413,0.4655,3278.4,3276.4,0.6788]
[1762527045618,0.4655,3278.4,3275.1,0.39812]
[1762527045818,0.005,3278.9,3276.0,1.259712]
[1762527046119,0.49616465,3278.8,3276.2,1.259712]
[1762527046317,3.05032356,3278.4,3276.5,0.405504]
[1762527046524,3.05042241,3278.3,3275.6,3.05287142]
[1762527046685,3.05042241,3278.3,3275.7,10.689638]
[1762527046686,0.1903,3278.3,3275.7,10.689638]
[1762527046899,4.3104457,3277.9,3275.1,0.005]
[1762527047103,0.1903,3278.3,3275.1,0.005]
[1762527047104,1.259712,3277.1,3275.1,0.005]
[1762527047274,1.259712,3276.8,3275.1,0.005]
[1762527047480,0.152,3275.7,3275.1,0.157]
[1762527047682,3.23545181,3275.7,3275.1,0.157]
[1762527047931,0.4655,3275.8,3275.1,0.005]
[1762527048226,0.4647,3275.6,3275.1,0.005]
[1762527048376,1.29037665,3275.5,3272.1,0.1736]
[1762527048723,3.05408079,3274.4,3272.1,0.1736]
[1762527048921,3.05409006,3274.3,3272.2,2.454973]
[1762527049124,0.03066465,3275.1,3272.3,3.586809]
[1762527049125,3.05401955,3274.4,3272.3,3.586809]
[1762527049417,1.29037665,3274.9,3272.4,2.346015]
[1762527049616,3.05416552,3274.3,3272.3,0.0481]
[1762527050104,3.05307531,3275.4,3272.1,0.1736]
[1762527050105,3.05380355,3274.7,3272.1,0.1736]
[1762527050290,6.1085489,3274.1,3271.6,0.0481]
[1762527050628,0.6558,3274.0,3271.6,0.0962]
[1762527050828,0.6558,3274.0,3271.7,2.450419]
[1762527050980,0.4655,3274.9,3271.9,3.05623988]
[1762527051180,0.4655,3274.9,3272.6,0.405504]
[1762527051500,3.51904483,3274.9,3272.8,0.405504]
[1762527051690,0.4655,3274.9,3273.0,0.405504]
[1762527051924,3.05379399,3274.7,3273.0,0.405504]
[1762527052124,0.4655,3274.8,3272.6,0.405504]
[1762527052282,3.05407099,3274.4,3272.6,0.405504]
[1762527052483,0.03066465,3274.3,3271.6,0.0481]
[1762527052677,0.03066465,3274.3,3271.7,3.52237]
[1762527052878,3.05427445,3274.1,3271.6,0.0481]
[1762527053213,1.259712,3273.9,3271.4,0.001]
[1762527053410,0.03066465,3273.8,3271.5,0.001]
[1762527053594,3.05474095,3273.6,3271.5,0.001]
[1762527053778,3.05660838,3271.6,3271.5,0.001]
[1762527053979,0.1903,3271.7,3271.5,0.001]
[1762527054295,0.1903,3271.7,3271.2,0.001]
[1762527054296,3.05688869,3271.3,3271.2,0.001]
[1762527054629,3.05688869,3271.3,3270.7,0.001]
[1762527054630,0.03066465,3271.3,3270.9,0.001]
[1762527054924,3.05716906,3271.0,3270.9,0.001]
[1762527055123,3.05716906,3271.0,3270.7,0.001]
[1762527055124,0.03066465,3271.0,3270.7,0.001]
[1762527055326,0.4655,3270.9,3269.0,0.001]
[1762527055884,3.05751626,3270.7,3269.0,0.001]
[1762527056100,0.4655,3270.9,3269.0,0.001]
[1762527056598,0.4655,3271.4,3269.1,0.0541]
[1762527056785,0.4655,3271.3,3269.2,0.405504]
[1762527056986,0.4655,3272.4,3269.5,30.0]
[1762527057188,0.4655,3272.4,3269.6,2.42992784]
[1762527057189,0.6558,3272.4,3269.6,2.42992784]
[1762527057389,0.6558,3272.4,3270.2,4.7231142]
[1762527057720,0.1903,3273.1,3270.6,1.665216]
[1762527057940,0.1903,3273.1,3270.8,1.665216]
[1762527058113,0.1903,3273.1,3270.7,3.524204]
[1762527058114,0.1903,3273.1,3271.2,1.665216]
[1762527058315,0.3423,3273.6,3273.0,0.152]
[1762527058641,0.3423,3273.6,3268.7,11.94886926]
[1762527058642,3.05522568,3273.1,3272.6,0.152]
[1762527058841,0.152,3272.8,3272.3,0.152]
[1762527059011,3.20772319,3272.6,3272.0,0.1528]
[1762527059213,0.152,3272.6,3272.0,0.1528]
[1762527059412,0.4655,3272.5,3271.4,0.405504]
[1762527059612,0.4655,3272.5,3272.0,0.1528]
[1762527059939,0.152,3272.8,3272.3,0.152]
[1762527060140,0.4655,3272.6,3270.8,0.405504]
[1762527060515,0.4655,3272.6,3269.4,0.001]
[1762527060516,3.05595452,3272.3,3269.5,0.0541]
[1762527060848,0.4655,3272.6,3269.6,1.29029678]
[1762527061015,0.4655,3272.6,3269.9,0.405504]
[1762527061215,0.47932886,3273.4,3270.2,0.405504]
[1762527061216,0.94482886,3273.4,3270.2,0.405504]
[1762527061402,0.94482886,3273.4,3270.0,30.08058103]
[1762527061403,0.47932886,3273.4,3271.5,0.405504]
[1762527061605,0.4655,3273.9,3271.7,0.405504]
[1762527061804,0.002,3274.4,3270.4,0.0541]
[1762527061805,3.05509395,3273.3,3270.4,0.0541]
[1762527062131,3.05509395,3273.3,3268.7,7.33461053]
[1762527062132,1.725212,3273.2,3270.5,0.45264823]
[1762527062339,1.259712,3273.1,3269.7,0.0541]
[1762527062503,3.05593878,3272.4,3269.8,23.823021]
[1762527062697,0.03066465,3272.9,3269.9,1.259712]
[1762527062954,0.4655,3272.9,3270.2,0.405504]
[1762527063116,3.05625346,3272.0,3269.9,0.0541]
[1762527063300,3.05672353,3271.5,3269.3,0.0541]
[1762527063504,3.05746708,3270.7,3269.0,0.001]
[1762527063832,0.6558,3270.6,3269.0,0.001]
[1762527064141,3.05773693,3270.4,3269.0,0.001]
[1762527064348,0.03066465,3270.3,3269.0,0.001]
[1762527064553,0.4655,3270.4,3269.0,0.001]
[1762527064701,0.49616465,3270.3,3269.0,0.001]
[1762527064905,0.4655,3270.3,3269.0,0.001]
[1762527065256,0.1903,3270.6,3269.0,0.001]
[1762527065480,0.6816,3271.6,3269.6,0.405504]
[1762527065798,0.6816,3271.6,3269.8,0.405504]
[1762527065929,0.6816,3271.6,3269.5,0.405504]
[1762527066132,0.6816,3271.6,3269.5,2.726387]
[1762527066445,0.6816,3271.6,3269.7,0.405504]
[1762527066634,1.259712,3273.0,3269.9,0.405504]
[1762527066635,0.6783,3272.5,3269.9,0.405504]
[1762527066834,0.488,3273.2,3270.9,3.05718533]
[1762527067053,0.488,3273.2,3270.4,3.05772994]
[1762527067054,0.03066465,3273.1,3271.0,1.32500068]
[1762527067269,0.03066465,3273.1,3271.2,0.405504]
[1762527067468,3.05561235,3272.7,3270.5,0.0541]
[1762527067655,3.05561235,3272.7,3268.6,0.05]
[1762527067656,0.488,3273.0,3269.9,0.405504]
[1762527067981,3.05548765,3272.8,3270.1,0.405504]
[1762527068182,3.05634128,3271.9,3269.9,0.405504]
[1762527068383,3.05634128,3271.9,3269.8,0.0541]
[1762527068384,3.05612915,3272.2,3270.1,0.405504]
[1762527068591,0.488,3273.5,3270.6,0.405504]
[1762527068754,0.1936,3272.1,3270.2,0.45264823]
[1762527068940,0.1936,3272.1,3269.0,0.001]
[1762527068941,1.259712,3271.6,3269.0,0.001]
[1762527069139,3.05721381,3271.0,3269.0,0.001]
[1762527069387,0.488,3271.5,3269.0,0.001]
[1762527069534,3.5448595,3271.4,3269.0,0.001]
[1762527069734,1.259712,3271.1,3269.0,0.001]
[1762527069939,0.03066465,3271.3,3269.0,0.001]
[1762527069940,1.259712,3270.8,3269.0,0.001]
[1762527070246,0.03066465,3270.7,3269.0,0.001]
[1762527070481,0.1528,3269.8,3269.2,0.1528]
[1762527070873,0.488,3269.7,3269.2,0.1528]
[1762527071087,0.4872,3269.7,3269.2,0.1528]
[1762527071288,0.4872,3269.7,3269.0,0.001]
[1762527071490,0.4872,3269.7,3269.0,0.1538]
[1762527071491,0.1528,3269.6,3269.0,0.1538]
[1762527072392,3.05894588,3269.1,3269.0,0.001]
[1762527072705,3.21186694,3269.0,3267.4,0.0549]
[1762527072864,0.1936,3268.8,3268.1,0.1528]
[1762527073065,0.1528,3268.5,3268.1,0.1528]
[1762527073264,0.1936,3268.8,3268.4,0.1528]
[1762527073480,0.6816,3268.8,3267.0,0.0569]
[1762527073706,0.51866465,3268.7,3265.7,0.1538]
[1762527073861,0.51866465,3268.7,3265.8,3.70995136]
[1762527073862,1.259712,3268.3,3265.8,3.70995136]
[1762527074062,0.03066465,3268.3,3265.7,0.5173]
[1762527074366,3.06118035,3266.8,3264.4,0.3635]
[1762527074596,3.06006915,3267.9,3264.4,0.3635]
[1762527074597,0.03066465,3266.7,3264.4,0.3635]
[1762527074765,3.06156707,3266.4,3263.8,0.5163]
[1762527074966,0.488,3266.6,3263.9,11.107328]
[1762527075165,0.488,3266.6,3264.2,1.259712]
[1762527075475,0.03066465,3266.5,3264.3,2.510068]
[1762527075680,0.03066465,3266.5,3263.8,0.1528]
[1762527075890,0.488,3266.4,3263.8,0.5163]
[1762527076062,3.06177742,3266.1,3263.9,2.065568]
[1762527076264,0.488,3266.4,3263.9,2.856233]
[1762527076511,1.50846715,3269.0,3263.9,2.856233]
[1762527076512,0.488,3267.0,3264.2,1.259712]
[1762527076716,0.488,3267.0,3264.6,1.665216]
[1762527077014,0.51866465,3267.0,3264.8,0.405504]
[1762527077217,0.51866465,3267.0,3263.8,0.1528]
[1762527077398,0.488,3267.0,3263.8,0.5163]
[1762527077711,1.259712,3266.4,3263.9,3.632016]
[1762527077914,0.488,3267.0,3263.9,3.995516]
[1762527078217,1.453312,3267.2,3263.8,0.1528]
[1762527078218,1.259712,3266.7,3264.0,0.3635]
[1762527078369,0.51866465,3266.9,3263.8,0.1528]
[1762527078370,1.259712,3266.4,3263.8,0.1528]
[1762527078564,0.1936,3267.2,3263.8,0.1528]
[1762527078565,3.06182564,3266.1,3263.8,0.1528]
[1762527078777,1.259712,3266.8,3263.9,5.35737]
[1762527078977,0.51866465,3266.7,3263.9,0.3635]
[1762527079175,1.259712,3266.3,3263.9,0.3635]
[1762527079391,0.03066465,3266.2,3263.9,0.3635]
[1762527079601,1.259712,3266.5,3263.9,0.3635]
[1762527079912,0.488,3267.1,3264.2,0.38769204]
[1762527080214,0.488,3267.1,3263.8,0.1528]
[1762527080215,1.259712,3266.6,3264.3,0.3635]
[1762527080432,1.29037665,3266.5,3263.8,0.5163]
[1762527080729,0.51866465,3266.4,3263.8,0.5163]
[1762527080939,0.488,3266.4,3263.8,0.5163]
[1762527081116,0.488,3266.4,3264.0,1.259712]
[1762527081301,0.03066465,3266.3,3264.1,0.3635]
[1762527081484,3.06242835,3265.4,3263.8,0.1528]
[1762527081683,0.03066465,3266.3,3263.8,0.1528]
[1762527081684,0.6816,3265.5,3263.8,0.1528]
[1762527081915,0.03066465,3265.4,3263.8,0.1528]
[1762527082126,0.6816,3265.5,3263.8,0.1528]
[1762527082330,0.51866465,3265.4,3262.9,0.3635]
[1762527082534,0.488,3265.4,3263.0,2.232657]
[1762527082825,0.51866465,3265.4,3263.1,0.3635]
[1762527083229,0.488,3265.4,3263.2,2.431978]
[1762527083591,0.1528,3265.5,3264.9,0.1528]
[1762527083918,0.3464,3265.5,3264.9,0.1528]
[1762527084230,0.3464,3265.5,3264.2,0.1528]
[1762527084231,0.6816,3265.5,3264.2,0.1528]
[1762527084432,0.488,3266.2,3264.3,0.769004]
[1762527084650,0.488,3267.0,3264.5,3.06325624]
[1762527084792,0.1936,3267.8,3265.1,0.405504]
[1762527084988,0.488,3268.7,3265.8,0.405504]
[1762527085221,0.488,3268.7,3266.4,0.405504]
[1762527085441,0.488,3268.7,3266.5,4.312891]
[1762527085588,0.488,3268.7,3266.6,0.769004]
[1762527086018,0.488,3268.7,3266.8,0.405504]
[1762527086200,0.03066465,3268.6,3266.7,0.3635]
[1762527086392,0.488,3269.5,3266.8,2.95232699]
[1762527086613,0.488,3269.5,3267.3,0.405504]
[1762527086813,0.488,3269.5,3267.5,3.46587331]
[1762527087019,0.488,3269.5,3267.7,0.405504]
[1762527087334,0.488,3269.5,3267.9,0.405504]
[1762527087638,3.25124766,3270.5,3268.1,0.405504]
[1762527087788,0.488,3270.0,3267.8,0.3635]
[1762527087992,0.488,3270.0,3267.6,0.0569]
[1762527088334,3.05819749,3269.9,3266.7,0.3635]
[1762527088494,0.488,3269.8,3266.9,0.405504]
[1762527088690,0.488,3269.8,3267.1,0.405504]
[1762527088891,0.488,3269.8,3266.5,1.259712]
[1762527088892,0.488,3269.8,3267.3,0.405504]
[1762527089207,0.488,3269.8,3267.5,0.405504]
[1762527089546,0.488,3269.8,3267.7,0.405504]
[1762527089845,0.1936,3270.4,3268.5,0.405504]
[1762527090053,0.67333924,3270.4,3268.7,0.405504]
[1762527090204,0.47973924,3270.4,3268.9,0.405504]
[1762527090406,0.47973924,3270.4,3269.1,0.405504]
[1762527090607,0.488,3270.6,3268.0,1.665216]
[1762527090807,1.453312,3271.0,3269.2,1.665216]
[1762527090808,0.1936,3271.0,3269.2,1.665216]
[1762527091007,0.1936,3271.0,3269.4,0.405504]
[1762527091008,0.22426465,3271.0,3269.4,0.405504]
[1762527091253,0.22426465,3271.0,3267.8,0.1071]
[1762527091254,0.6816,3271.0,3268.4,0.405504]
[1762527091458,0.488,3271.6,3269.5,3.05857116]
[1762527091775,0.488,3271.6,3268.2,0.69189693]
[1762527091776,0.03066465,3271.5,3269.6,0.769204]
[1762527091979,0.488,3271.6,3269.6,0.769204]
[1762527092274,0.488,3271.6,3268.8,1.259712]
[1762527092275,0.488,3271.6,3269.8,0.405504]
[1762527092438,0.488,3271.6,3270.0,0.405504]
[1762527092624,0.03066465,3271.5,3269.0,0.3637]
[1762527092826,0.1936,3272.0,3269.1,4.144712]
[1762527092827,0.488,3271.4,3269.1,4.144712]
[1762527093078,0.03066465,3271.9,3269.3,1.665216]
[1762527093255,0.1936,3272.0,3269.5,4.72376801]
[1762527093256,0.6816,3272.0,3269.5,4.72376801]
[1762527093470,0.6816,3272.0,3269.8,0.405504]
[1762527093779,0.4872,3272.2,3270.2,0.405504]
[1762527093931,0.4872,3272.2,3270.4,0.405504]
[1762527094125,0.1936,3272.5,3271.1,0.405504]
[1762527094365,0.1936,3272.5,3272.0,0.1528]
[1762527094581,3.05470152,3273.7,3271.1,0.405504]
[1762527094582,0.1936,3273.3,3271.6,0.405504]
[1762527094730,0.47931622,3273.1,3272.1,0.44409845]
[1762527094926,0.47931622,3273.1,3271.8,0.405504]
[1762527094927,0.47931622,3273.1,3272.6,0.152]
[1762527095260,0.002,3274.4,3272.7,12.61639381]
[1762527095499,0.002,3274.4,3273.2,1.259712]
[1762527095772,0.002,3274.4,3274.3,0.462604]
[1762527096475,0.002,3275.1,3274.4,0.405504]
[1762527096681,0.002,3275.1,3274.6,0.405504]
[1762527096825,0.002,3275.1,3274.7,8.455091]
[1762527097027,0.002,3275.1,3274.7,0.405504]
[1762527097927,0.002,3275.1,3274.3,0.0571]
[1762527098123,0.002,3275.1,3273.9,0.405504]
[1762527098323,0.002,3275.1,3274.1,0.405504]
[1762527098577,0.002,3275.1,3273.4,6.05077415]
[1762527098785,0.002,3275.1,3273.5,2.081623]
[1762527098945,0.002,3275.1,3273.7,0.405504]
[1762527099126,0.002,3275.1,3273.9,1.665216]
[1762527099346,0.4511,3274.9,3272.8,6.41527415]
[1762527099591,0.4511,3274.9,3273.2,1.259712]
[1762527099745,0.002,3275.1,3273.5,0.405504]
[1762527099947,0.002,3275.1,3273.4,1.259712]
[1762527099948,0.002,3275.1,3273.7,0.405504]
[1762527100259,0.002,3275.1,3273.9,0.405504]
[1762527100510,0.002,3275.1,3274.1,0.405504]
[1762527100655,0.002,3275.1,3273.6,0.405504]
[1762527100857,0.002,3275.1,3273.7,0.03054647]
[1762527101061,0.002,3275.1,3274.7,0.462604]
[1762527101296,0.002,3275.1,3274.8,1.665216]
[1762527101461,0.002,3275.1,3275.0,4.71865111]
[1762527101809,0.002,3275.5,3275.0,2.794154]
[1762527101957,0.002,3275.5,3274.7,0.0571]
[1762527102158,0.002,3275.5,3274.8,7.08433921]
[1762527102360,0.002,3275.5,3275.0,0.405504]
[1762527102676,0.002,3275.5,3274.8,0.405504]
[1762527102882,0.002,3275.5,3275.0,1.665216]
[1762527103115,0.002,3275.5,3275.2,0.405504]
[1762527103258,0.002,3275.5,3275.0,0.405504]
[1762527103794,0.002,3275.5,3274.7,6.10787415]
[1762527103795,0.002,3275.5,3274.8,0.405504]
[1762527104883,0.002,3275.5,3274.3,0.405504]
[1762527105271,0.002,3275.5,3274.4,3.257314]
[1762527105474,0.002,3275.5,3275.4,0.152]
[1762527105672,0.002,3275.5,3275.4,0.557504]
[1762527106276,0.002,3275.5,3275.4,0.152]
[1762527106589,0.4672,3275.5,3275.4,0.152]
[1762527106777,0.002,3275.5,3275.4,0.152]
[1762527107008,0.4672,3275.5,3275.4,0.152]
[1762527107205,0.4672,3275.5,3273.3,0.001]
[1762527107511,0.4672,3275.5,3273.4,2.585482]
[1762527107714,3.05315543,3275.3,3273.4,0.44409845]
[1762527107919,3.05334188,3275.1,3273.3,0.001]
[1762527108072,3.0543627,3274.1,3273.3,0.001]
[1762527108273,3.24282759,3273.4,3273.3,0.001]
[1762527108472,3.05511018,3273.3,3272.9,0.001]
[1762527108716,0.4652,3273.3,3272.9,0.001]
[1762527108884,3.05530094,3273.0,3271.0,1.881712]
[1762527109087,0.03066465,3272.9,3271.0,0.622]
[1762527109309,0.03066465,3272.9,3270.9,6.05077415]
[1762527109310,3.05565166,3272.7,3270.9,6.05077415]
[1762527109486,3.05576776,3272.5,3269.8,0.1538]
[1762527109687,3.05682218,3271.4,3269.8,0.1538]
[1762527109890,0.03066465,3271.3,3269.5,0.4684]
[1762527110074,0.1879,3271.3,3269.3,0.1538]
[1762527110272,0.1879,3271.3,3268.8,0.152]
[1762527110273,0.49586465,3271.2,3268.8,0.152]
[1762527110471,1.259712,3271.0,3268.2,0.152]
[1762527110698,3.05770662,3270.5,3268.2,0.152]
[1762527110913,0.03066465,3270.4,3268.3,2.235016]
[1762527111115,0.03066465,3270.4,3268.2,0.152]
[1762527111325,0.4652,3270.3,3268.2,0.152]
[1762527111471,0.03066465,3270.2,3268.2,0.152]
[1762527111671,3.0579826,3270.2,3268.2,0.152]
[1762527111913,0.4652,3270.1,3268.2,0.152]
[1762527112114,3.05828043,3269.9,3267.4,0.4684]
[1762527112371,0.03066465,3269.8,3267.4,6.51917415]
[1762527112576,0.4652,3270.1,3268.0,6.05077415]
[1762527112822,0.4652,3270.8,3268.2,1.259712]
[1762527113017,0.03066465,3271.0,3268.4,0.405504]
[1762527113384,0.4652,3270.9,3268.6,0.405504]
[1762527113586,0.4652,3270.9,3268.2,6.05077415]
[1762527113788,0.4652,3270.7,3267.6,6.05077415]
[1762527113985,3.05855593,3269.6,3267.6,6.51917415]
[1762527114332,0.02729976,3269.5,3267.6,0.4684]
[1762527114545,0.02729976,3269.5,3267.0,0.4684]
[1762527114841,0.4652,3269.4,3267.0,0.4684]
[1762527115044,3.05882796,3269.3,3267.0,0.4684]
[1762527115211,0.4652,3269.4,3267.4,1.259712]
[1762527115413,0.4652,3269.4,3267.6,0.405504]
[1762527115645,0.4652,3270.0,3267.8,0.405504]
[1762527115817,0.02729976,3269.9,3267.7,0.405504]
[1762527116020,0.4652,3270.0,3267.9,0.405504]
[1762527116221,0.49249976,3269.9,3267.7,0.405504]
[1762527116546,3.05861485,3269.5,3267.5,0.405504]
[1762527116732,3.05861485,3269.5,3267.4,1.259712]
[1762527116733,0.02729976,3269.4,3267.4,1.259712]
[1762527116947,0.4652,3270.2,3267.5,2.233197]
[1762527117243,3.21157198,3269.3,3268.8,0.1528]
[1762527117450,0.1528,3269.3,3268.8,0.1528]
[1762527117654,0.1528,3269.3,3267.4,1.259712]
[1762527117655,0.4652,3269.3,3267.8,0.4684]
[1762527117820,0.4652,3269.5,3267.9,2.79855]
[1762527118021,0.4652,3269.5,3268.1,0.405504]
[1762527118222,0.4652,3270.1,3268.1,0.405504]
[1762527118424,0.02729976,3270.0,3268.0,0.405504]
[1762527118655,0.02729976,3270.0,3267.2,0.5255]
[1762527118656,1.259712,3270.0,3267.2,0.5255]
[1762527118812,0.4652,3269.9,3267.3,2.097827]
[1762527119012,0.4652,3269.9,3267.9,0.405504]
[1762527119265,0.4652,3269.9,3268.1,0.405504]
[1762527119425,0.4652,3269.9,3268.0,8.065855]
[1762527119426,0.4652,3269.9,3268.0,0.405504]
[1762527119610,0.4652,3269.9,3268.3,0.405504]
[1762527119817,0.4652,3269.9,3268.4,3.06994]
[1762527120157,0.4652,3269.9,3268.5,0.405504]
[1762527120325,0.02729976,3269.8,3268.2,0.405504]
[1762527120528,0.4652,3269.9,3267.2,6.10787415]
[1762527120734,0.4652,3269.8,3267.3,3.722357]
[1762527120949,0.02729976,3269.7,3267.4,15.323795]
[1762527121268,0.4652,3269.8,3267.5,4.361728]
[1762527121431,0.4652,3269.8,3267.9,1.665216]
[1762527121761,1.259712,3272.3,3268.1,1.665216]
[1762527121977,0.4652,3269.9,3268.2,0.405504]
[1762527122327,0.02729976,3269.8,3267.2,0.0571]
[1762527122524,0.02729976,3269.8,3265.4,1.259802]
[1762527122525,0.4652,3269.9,3266.6,0.4684]
[1762527122726,0.49249976,3269.8,3266.7,0.0571]
[1762527122960,0.49249976,3269.8,3266.3,0.4684]
[1762527123163,0.4652,3269.8,3266.3,0.4684]
[1762527123464,0.4652,3269.8,3266.7,6.05077415]
[1762527123664,0.4652,3269.8,3266.3,0.8237534]
[1762527123665,0.4652,3269.8,3267.4,6.05077415]
[1762527123973,0.4652,3269.8,3268.1,0.001]
[1762527124267,0.1879,3269.7,3268.1,0.001]
[1762527124622,0.4652,3269.6,3268.1,0.001]
[1762527125047,0.02729976,3269.5,3268.1,0.001]
[1762527125473,0.4584,3269.4,3268.1,0.001]
[1762527125664,0.1805,3268.2,3268.1,0.001]
[1762527125872,0.1805,3268.2,3267.8,0.001]
[1762527126029,0.4584,3268.1,3267.8,0.001]
[1762527126233,0.48569976,3268.1,3267.5,0.001]
[1762527126759,0.1805,3268.6,3267.5,0.001]
[1762527126965,0.4584,3268.7,3267.5,0.001]
[1762527127268,0.4584,3270.2,3268.1,0.405504]
[1762527127424,0.4584,3270.2,3268.7,0.405504]
[1762527127771,0.4584,3270.8,3268.7,0.405504]
[1762527127925,0.1528,3270.6,3270.0,0.1528]
[1762527128130,0.4584,3270.8,3267.9,0.459]
[1762527128369,0.1879,3271.3,3267.3,6.05077415]
[1762527128370,0.1528,3269.5,3269.0,0.1528]
[1762527128574,0.02729976,3269.4,3267.1,0.459]
[1762527128729,0.4584,3270.6,3267.3,0.6119]
[1762527128930,0.02729976,3270.5,3267.6,2.98]
[1762527129242,0.4584,3271.2,3267.8,0.405504]
[1762527129429,0.4584,3271.1,3268.0,0.405504]
[1762527129632,0.4584,3271.1,3268.2,0.405504]
[1762527129862,0.4584,3271.1,3268.8,0.405504]
[1762527130041,0.1879,3271.3,3269.5,0.405504]
[1762527130242,0.6463,3271.3,3269.5,0.405504]
[1762527130567,0.1879,3271.3,3269.7,0.405504]
[1762527130769,0.47959196,3271.9,3269.9,0.405504]
[1762527130926,0.47959196,3271.9,3269.6,0.405504]
[1762527130927,0.4584,3271.5,3269.6,0.405504]
[1762527131126,0.4584,3271.5,3269.8,0.405504]
[1762527131330,0.4584,3272.2,3270.0,0.405504]
[1762527131565,0.47945653,3272.4,3270.8,6.05077415]
[1762527131766,0.4584,3272.8,3270.9,0.405504]
[1762527131971,0.002,3273.0,3271.1,1.665216]